bitfinex/quotes_BTCUSD_20251226
["timestamp","ask_amount","ask_price","bid_price","bid_amount"]
[1766733619656,0.08004,89353.0,89347.0,0.01119231]
[1766733619970,0.08004,89353.0,89346.0,0.01119244]
[1766733620279,0.08004,89353.0,89347.0,0.01119231]
[1766733620873,0.08004,89353.0,89346.0,0.01119244]
[1766733621186,0.08004,89353.0,89347.0,0.01119231]
[1766733621383,0.08004,89353.0,89348.0,0.01119219]
[1766733622260,0.08004,89353.0,89347.0,0.01119231]
[1766733622451,0.01124,89353.0,89348.0,0.01119219]
[1766733623287,0.000549,89348.0,89347.0,0.01119231]
[1766733623819,0.01124,89353.0,89347.0,0.01119231]
[1766733624336,0.01124,89353.0,89348.0,0.01119219]
[1766733624682,0.01124,89353.0,89350.0,0.01119194]
[1766733624885,0.01124,89360.0,89353.0,0.01119156]
[1766733625105,0.01124,89360.0,89356.0,0.01119119]
[1766733625335,0.01124,89360.0,89355.0,0.01119131]
[1766733625712,0.01124,89360.0,89353.0,0.01119156]
[1766733625887,0.01124,89360.0,89355.0,0.01119131]
[1766733626321,0.01124,89360.0,89353.0,0.01119156]
[1766733626504,0.01124,89360.0,89355.0,0.01119131]
[1766733626707,0.01124,89360.0,89356.0,0.01119119]
[1766733626928,0.01124,89360.0,89355.0,0.01119131]
[1766733627127,0.07970205,89365.0,89355.0,0.01119131]
[1766733627128,0.01124,89365.0,89355.0,0.06714734]
[1766733627391,0.01124,89365.0,89355.0,0.01119131]
[1766733627748,0.01124,89365.0,89357.0,0.01119106]
[1766733629754,0.01124,89365.0,89356.0,0.01119119]
[1766733630120,0.01124,89365.0,89355.0,0.06714754]
[1766733630121,0.02243006,89365.0,89355.0,0.06714754]
[1766733630374,0.01124,89365.0,89357.0,0.01119106]
[1766733630577,0.01124,89365.0,89355.0,0.01119131]
[1766733630927,0.01119031,89363.0,89353.0,0.01119156]
[1766733631153,0.02243006,89365.0,89355.0,0.01119131]
[1766733631366,0.02243006,89365.0,89354.0,0.01119144]
[1766733631565,0.02243006,89365.0,89355.0,0.01119131]
[1766733631772,0.01119018,89364.0,89354.0,0.01119144]
[1766733631936,0.02243006,89365.0,89355.0,0.01119131]
[1766733632141,0.02243006,89365.0,89356.0,0.01119119]
[1766733632543,0.02243006,89365.0,89355.0,0.05595657]
[1766733632770,0.0559525,89362.0,89349.0,0.05596013]
[1766733632971,0.02243006,89365.0,89343.0,0.05596399]
[1766733632972,0.000549,89349.0,89343.0,0.05596399]
[1766733633310,0.000549,89349.0,89342.0,0.01119294]
[1766733633447,0.07999181,89351.0,89340.0,0.0671587]
[1766733633646,0.01119219,89348.0,89344.0,2.7e-07]
[1766733633846,0.0688,89349.0,89339.0,0.01119331]
[1766733634053,0.0688,89349.0,89340.0,0.01119319]
[1766733634054,0.08009951,89349.0,89340.0,0.01119319]
[1766733634275,0.06890745,89349.0,89341.0,0.01119306]
[1766733634600,0.06890745,89349.0,89343.0,0.01119281]
[1766733634949,0.06890745,89349.0,89344.0,0.01119269]
[1766733635561,0.06890745,89349.0,89343.0,0.01119281]
[1766733635764,0.000485,89343.0,89340.0,0.01119319]
[1766733636082,0.000485,89343.0,89341.0,0.05596534]
[1766733636278,0.06890745,89349.0,89340.0,0.01119319]
[1766733636484,0.06890745,89349.0,89341.0,0.01119306]
[1766733636672,0.06890745,89349.0,89340.0,0.01119319]
[1766733636870,0.07999231,89347.0,89337.0,0.01119357]
[1766733637075,0.000485,89340.0,89337.0,0.01119357]
[1766733637358,0.0688,89347.0,89341.0,0.01119306]
[1766733637599,0.0688,89347.0,89340.0,0.01119319]
[1766733637803,0.0688,89347.0,89342.0,0.01119294]
[1766733638319,0.0688,89347.0,89341.0,0.01119306]
[1766733638813,0.000485,89341.0,89338.0,0.01119344]
[1766733638968,0.0688,89347.0,89340.0,0.01119319]
[1766733639366,0.0688,89347.0,89339.0,0.01119331]
[1766733639823,0.000485,89339.0,89334.0,0.02243394]
[1766733639966,0.000485,89339.0,89334.0,0.01124]
[1766733640166,0.01119306,89341.0,89334.0,0.01124]
[1766733640397,0.01119457,89329.0,89318.0,0.01119595]
[1766733640574,0.01119457,89329.0,89317.0,0.03359818]
[1766733640575,0.01119507,89325.0,89319.0,0.01124]
[1766733640790,0.01119519,89324.0,89319.0,0.01124]
[1766733640969,0.01119494,89326.0,89319.0,0.01124]
[1766733641170,0.01119482,89327.0,89319.0,0.01124]
[1766733641425,0.07999482,89327.0,89319.0,0.01124]
[1766733641578,0.0688,89327.0,89319.0,0.01124]
[1766733641778,0.07999482,89327.0,89319.0,0.01124]
[1766733642197,0.0688,89327.0,89319.0,0.01124]
[1766733642392,0.0688,89327.0,89320.0,0.0111957]
[1766733642587,0.0688,89327.0,89319.0,0.02243582]
[1766733642866,0.07999482,89327.0,89319.0,0.010755]
[1766733643395,0.0688,89327.0,89319.0,0.02195082]
[1766733643588,0.0688,89327.0,89319.0,0.010755]
[1766733643589,0.01119532,89323.0,89319.0,0.010755]
[1766733643830,0.01119519,89324.0,89319.0,0.010755]
[1766733644093,0.07999507,89325.0,89319.0,0.010755]
[1766733644611,0.0688,89325.0,89319.0,0.010755]
[1766733645143,0.068251,89325.0,89321.0,0.01119557]
[1766733645810,0.068251,89325.0,89322.0,0.01119545]
[1766733646306,0.08376432,89331.0,89322.0,0.01119545]
[1766733646711,0.07257,89331.0,89323.0,0.01119532]
[1766733647122,0.07257,89331.0,89324.0,0.01119519]
[1766733647328,0.07257,89331.0,89323.0,0.01119532]
[1766733647891,0.07257,89331.0,89320.0,0.0111957]
[1766733648095,0.01119457,89329.0,89319.0,0.01119582]
[1766733648256,0.01119457,89329.0,89320.0,0.0111957]
[1766733648666,0.01119444,89330.0,89321.0,0.01119557]
[1766733648861,0.01119457,89329.0,89320.0,0.0111957]
[1766733649268,0.08376432,89331.0,89322.0,0.01119545]
[1766733649479,0.08376432,89331.0,89321.0,0.01119557]
[1766733649670,0.01119444,89330.0,89321.0,0.01119557]
[1766733649873,0.08376432,89331.0,89322.0,0.01119545]
[1766733650188,0.08376432,89331.0,89321.0,0.01119557]
[1766733650189,0.01119457,89329.0,89320.0,0.0111957]
[1766733650707,0.01119444,89330.0,89320.0,0.0111957]
[1766733651004,0.01119457,89329.0,89320.0,0.0111957]
[1766733651211,0.000549,89320.0,89307.0,0.01119733]
[1766733651359,0.01119557,89321.0,89310.0,0.01119695]
[1766733651553,0.01119582,89319.0,89309.0,0.01119707]
[1766733651795,0.0111957,89320.0,89310.0,0.01119695]
[1766733651957,0.0111957,89320.0,89307.0,0.01119733]
[1766733651958,0.06717504,89319.0,89307.0,0.01119733]
[1766733652168,0.01119582,89319.0,89310.0,0.01124]
[1766733652371,0.0111962,89316.0,89310.0,0.01124]
[1766733653031,0.01119607,89317.0,89310.0,0.01124]
[1766733653194,0.01119607,89317.0,89308.0,0.0111972]
[1766733653392,0.0111962,89316.0,89309.0,0.01124]
[1766733653596,0.01119607,89317.0,89309.0,0.01124]
[1766733654410,0.0111962,89316.0,89309.0,0.01124]
[1766733654625,0.01119607,89317.0,89309.0,0.01124]
[1766733655802,0.01130321,89319.0,89309.0,0.02243707]
[1766733656002,0.00010739,89319.0,89311.0,0.01119682]
[1766733656422,0.00010739,89319.0,89310.0,0.01119695]
[1766733656630,0.01130321,89319.0,89309.0,0.01124]
[1766733656825,0.00010739,89319.0,89310.0,0.01119695]
[1766733657024,0.01130321,89319.0,89309.0,0.02243707]
[1766733657224,0.00010739,89319.0,89311.0,0.01119682]
[1766733658009,0.00010739,89319.0,89312.0,0.0111967]
[1766733658209,0.00010739,89319.0,89311.0,0.01119682]
[1766733658443,0.00010739,89319.0,89312.0,0.0111967]
[1766733659325,0.00010739,89319.0,89311.0,0.01119682]
[1766733659326,0.00010739,89319.0,89313.0,0.01119762]
[1766733660500,0.00010739,89319.0,89314.0,0.01119645]
[1766733660653,0.08024,89330.0,89319.0,0.01119582]
[1766733660654,0.06727943,89330.0,89319.0,0.01119582]
[1766733660834,0.06727943,89330.0,89324.0,0.01119519]
[1766733660835,0.06735561,89330.0,89324.0,0.01119519]
[1766733661222,0.069,89338.0,89329.0,0.01119457]
[1766733661427,0.069,89338.0,89330.0,0.01119444]
[1766733661629,0.000549,89330.0,89325.0,0.01124]
[1766733662067,0.01119469,89328.0,89316.0,0.04344287]
[1766733662242,0.01119469,89328.0,89317.0,0.02243607]
[1766733662442,0.06716893,89327.0,89316.0,0.01127238]
[1766733662641,0.01119482,89327.0,89318.0,0.01119595]
[1766733662987,0.22389396,89328.0,89316.0,7.618e-05]
[1766733663195,0.08019419,89332.0,89319.0,0.06721898]
[1766733663358,0.08019419,89332.0,89321.0,0.01119557]
[1766733663695,0.08019394,89334.0,89321.0,0.01119557]
[1766733663846,0.069,89334.0,89323.0,0.01119532]
[1766733664047,0.069,89334.0,89325.0,0.01119507]
[1766733664458,0.08019394,89334.0,89325.0,0.01119507]
[1766733664658,0.069,89334.0,89325.0,0.01119507]
[1766733665059,0.08019394,89334.0,89324.0,0.01119519]
[1766733665265,0.069,89334.0,89325.0,0.01119507]
[1766733665465,0.069,89334.0,89324.0,0.01119519]
[1766733665648,0.01119369,89336.0,89323.0,0.01119532]
[1766733665649,0.01119407,89333.0,89323.0,0.01119532]
[1766733665996,0.069,89332.0,89324.0,0.01119519]
[1766733666412,0.069,89332.0,89325.0,0.01119507]
[1766733666560,0.069,89332.0,89326.0,0.01119494]
[1766733666758,0.069,89332.0,89327.0,0.06716893]
[1766733666961,0.069,89332.0,89328.0,0.01119469]
[1766733667164,0.069,89332.0,89326.0,0.01119494]
[1766733667385,0.069,89332.0,89327.0,0.01119482]
[1766733667609,0.069,89332.0,89326.0,0.01119494]
[1766733667976,0.069,89332.0,89327.0,0.01119482]
[1766733668183,0.069,89332.0,89328.0,0.01119469]
[1766733668391,0.069,89332.0,89327.0,0.01119482]
[1766733668973,0.069,89332.0,89328.0,0.01119469]
[1766733669175,0.069,89332.0,89327.0,0.01119482]
[1766733669999,0.069,89332.0,89328.0,0.01119469]
[1766733670436,0.069,89332.0,89326.0,0.01119494]
[1766733670601,0.069,89332.0,89327.0,0.01119482]
[1766733670929,0.069,89332.0,89328.0,0.01119469]
[1766733671075,0.069,89332.0,89327.0,0.01119482]
[1766733671278,0.069,89332.0,89326.0,0.01119494]
[1766733671478,0.069,89332.0,89327.0,0.01119482]
[1766733671828,0.069,89332.0,89328.0,0.01119469]
[1766733671981,0.069,89332.0,89327.0,0.01119482]
[1766733672201,0.069,89332.0,89328.0,0.01119469]
[1766733672384,0.069,89332.0,89327.0,0.01119482]
[1766733672582,0.069,89332.0,89327.0,0.01152445]
[1766733673405,0.069,89332.0,89329.0,0.01119457]
[1766733674636,0.069,89332.0,89329.0,0.06716707]
[1766733674839,0.01124,89339.0,89334.0,0.05596973]
[1766733675016,0.01124,89342.0,89335.0,0.06716253]
[1766733675219,0.08414,89343.0,89337.0,0.01119357]
[1766733675419,0.08414,89343.0,89337.0,0.00647516]
[1766733675656,0.08414,89343.0,89340.0,0.01119319]
[1766733676017,0.0729,89349.0,89346.0,0.01119244]
[1766733676421,0.0729,89349.0,89343.0,0.01119281]
[1766733676617,0.0729,89349.0,89346.0,0.01119244]
[1766733677202,0.01124,89351.0,89346.0,0.06715439]
[1766733677406,0.0729,89355.0,89347.0,0.01119231]
[1766733677555,0.0729,89355.0,89348.0,0.01119219]
[1766733677925,0.0729,89355.0,89347.0,0.01119231]
[1766733678126,0.0729,89355.0,89348.0,0.01119219]
[1766733678525,0.0729,89355.0,89347.0,0.01119231]
[1766733679143,0.0729,89355.0,89345.0,0.01119256]
[1766733679376,0.0729,89355.0,89346.0,0.01119244]
[1766733679584,0.0729,89355.0,89347.0,0.01119231]
[1766733680272,0.08409131,89355.0,89346.0,0.01119244]
[1766733680473,0.0729,89355.0,89347.0,0.01119231]
[1766733681087,0.0729,89355.0,89349.0,0.01119206]
[1766733681289,0.0729,89355.0,89351.0,0.06715087]
[1766733681493,0.0729,89355.0,89352.0,0.01119169]
[1766733681718,0.01124,89357.0,89352.0,0.01119169]
[1766733682050,0.01134754,89357.0,89352.0,0.01119169]
[1766733682437,0.000549,89352.0,89350.0,0.01119194]
[1766733682781,0.01134754,89357.0,89351.0,0.01119181]
[1766733683079,0.00055,89351.0,89346.0,0.06715414]
[1766733683281,0.00055,89351.0,89348.0,0.01119219]
[1766733683485,0.0729,89356.0,89351.0,0.01119181]
[1766733683845,0.0729,89356.0,89352.0,0.01119169]
[1766733684262,0.0729,89356.0,89351.0,0.01119181]
[1766733684431,0.0729,89356.0,89352.0,0.01119169]
[1766733684625,0.0729,89356.0,89353.0,0.01119156]
[1766733684830,0.0729,89356.0,89352.0,0.01119169]
[1766733685036,0.0729,89356.0,89353.0,0.01119156]
[1766733685669,0.0729,89356.0,89352.0,0.01119169]
[1766733685874,0.0729,89356.0,89353.0,0.01119156]
[1766733686312,0.0729,89356.0,89352.0,0.01119169]
[1766733686597,0.0729,89356.0,89353.0,0.01119156]
[1766733690820,0.0729,89356.0,89352.0,0.01119169]
[1766733690992,0.0729,89356.0,89353.0,0.01119156]
[1766733691844,0.0729,89356.0,89351.0,0.01119181]
[1766733692092,0.000549,89353.0,89350.0,0.01119194]
[1766733692496,0.000549,89353.0,89350.0,0.06715136]
[1766733692691,0.0729,89356.0,89352.0,0.01119169]
[1766733692968,0.0729,89356.0,89351.0,0.01119181]
[1766733696706,0.0729,89356.0,89352.0,0.06715008]
[1766733696910,0.0729,89356.0,89353.0,0.01119156]
[1766733697502,0.0729,89356.0,89351.0,0.01119181]
[1766733697698,0.0729,89356.0,89352.0,0.01119169]
[1766733697899,0.0729,89356.0,89353.0,0.01119156]
[1766733698468,0.0729,89356.0,89352.0,0.01119169]
[1766733698672,0.0729,89356.0,89353.0,0.01119156]
[1766733698887,0.0729,89356.0,89352.0,0.01119169]
[1766733699097,0.01134754,89357.0,89353.0,0.01119156]
[1766733700130,0.01134754,89357.0,89351.0,0.01119181]
[1766733700736,0.01134754,89357.0,89352.0,0.01119169]
[1766733701481,0.01134754,89357.0,89351.0,0.01119181]
[1766733702276,0.01134754,89357.0,89352.0,0.01119169]
[1766733702840,0.000549,89352.0,89350.0,0.01119194]
[1766733703203,0.08424754,89357.0,89351.0,0.01119181]
[1766733704126,0.08424754,89357.0,89352.0,0.01119169]
[1766733704328,0.08424754,89357.0,89351.0,0.01119181]
[1766733706071,0.08424754,89357.0,89352.0,0.01119169]
[1766733706276,0.08424754,89357.0,89351.0,0.01119181]
[1766733706682,0.08424754,89357.0,89350.0,0.01119194]
[1766733706839,0.08424754,89357.0,89351.0,0.01119181]
[1766733707024,0.08424754,89357.0,89350.0,0.01119194]
[1766733707228,0.08424754,89357.0,89351.0,0.01119181]
[1766733707422,0.08424754,89357.0,89350.0,0.01119194]
[1766733707676,0.08424754,89357.0,89352.0,0.01119169]
[1766733707973,0.08424754,89357.0,89348.0,0.01119219]
[1766733708153,0.000549,89352.0,89349.0,0.01119206]
[1766733708362,0.08424754,89357.0,89350.0,0.01119194]
[1766733710422,0.08424754,89357.0,89349.0,0.01119206]
[1766733711155,0.08424754,89357.0,89348.0,0.01119219]
[1766733711355,0.07183,89351.0,89348.0,0.01119219]
[1766733711655,0.01134754,89357.0,89348.0,0.01119219]
[1766733711656,0.01134754,89357.0,89352.0,0.01119169]
[1766733711856,0.01134754,89357.0,89353.0,0.01119156]
[1766733712291,0.01134754,89357.0,89354.0,0.01119144]
[1766733712492,0.01134754,89357.0,89352.0,0.06714952]
[1766733712959,0.01134754,89357.0,89354.0,0.01119144]
[1766733713160,0.01134754,89357.0,89352.0,0.06714952]
[1766733713365,0.01134754,89357.0,89353.0,0.01119156]
[1766733713569,0.01134754,89357.0,89354.0,0.01119144]
[1766733713773,0.01134754,89357.0,89353.0,0.01119156]
[1766733714010,0.01134754,89357.0,89354.0,0.01119144]
[1766733714192,0.01134754,89357.0,89353.0,0.01119156]
[1766733714387,0.01134754,89357.0,89354.0,0.01119144]
[1766733714609,0.01119181,89363.0,89354.0,0.01119144]
[1766733714610,0.01119181,89363.0,89360.0,0.05595344]
[1766733714806,0.08307,89372.0,89365.0,0.01119006]
[1766733715007,0.01049955,89371.0,89363.0,0.01119031]
[1766733715191,0.08301931,89371.0,89361.0,0.01119056]
[1766733715761,0.01118943,89370.0,89360.0,0.01119068]
[1766733716293,0.07183,89371.0,89362.0,0.01119043]
[1766733717040,0.08301931,89371.0,89362.0,0.01119043]
[1766733717276,0.13896588,89371.0,89358.0,0.01119093]
[1766733717416,0.08301931,89371.0,89361.0,0.01119056]
[1766733717624,0.07183,89371.0,89360.0,0.06714373]
[1766733718448,0.01118943,89370.0,89360.0,0.01119068]
[1766733718650,0.07183,89370.0,89367.0,0.01118981]
[1766733718969,0.07183,89377.0,89370.0,0.000549]
[1766733719128,0.07183,89375.0,89370.0,0.000549]
[1766733719321,0.07183,89375.0,89369.0,0.01118956]
[1766733719722,0.07183,89375.0,89371.0,0.01118931]
[1766733719956,0.07183,89375.0,89372.0,0.01118918]
[1766733720592,0.01124,89381.0,89372.0,0.01118918]
[1766733720744,0.01124,89381.0,89378.0,0.06713019]
[1766733720948,0.12957627,89389.0,89384.0,0.01118768]
[1766733721314,1e-08,89389.0,89387.0,0.05593654]
[1766733721881,1e-08,89389.0,89386.0,0.01118743]
[1766733722041,1e-08,89389.0,89385.0,0.01118755]
[1766733722255,1e-08,89389.0,89381.0,0.06712775]
[1766733722465,1e-08,89389.0,89379.0,0.01118831]
[1766733722915,1e-08,89389.0,89375.0,0.01118881]
[1766733722916,0.01118706,89389.0,89375.0,0.01118881]
[1766733723061,0.00055,89379.0,89376.0,0.01118868]
[1766733723262,0.00055,89379.0,89377.0,0.01124]
[1766733723565,0.0111873,89387.0,89377.0,0.01124]
[1766733723566,0.01118755,89385.0,89377.0,0.01124]
[1766733723765,0.0111878,89383.0,89377.0,0.01124]
[1766733723962,0.0111878,89383.0,89371.0,0.05594646]
[1766733723963,0.08301793,89382.0,89371.0,0.01118931]
[1766733724188,0.07183,89382.0,89371.0,0.01118931]
[1766733724473,0.07183,89382.0,89372.0,0.01124]
[1766733724474,0.01118806,89381.0,89372.0,0.01124]
[1766733724701,0.07183,89380.0,89372.0,0.02242918]
[1766733725018,0.07183,89380.0,89373.0,0.01118906]
[1766733725774,0.07183,89380.0,89374.0,0.01118893]
[1766733726871,0.07183,89380.0,89373.0,0.01118906]
[1766733728018,0.07183,89380.0,89374.0,0.01124]
[1766733728217,0.07183,89380.0,89374.0,0.02242893]
[1766733729280,0.07183,89380.0,89374.0,0.01124]
[1766733735023,0.07183,89380.0,89374.0,0.02242893]
[1766733735773,0.07183,89380.0,89374.0,0.01124]
[1766733736541,0.07183,89380.0,89374.0,0.02242893]
[1766733737233,0.07183,89380.0,89374.0,0.01124]
[1766733738057,0.07183,89380.0,89374.0,0.02242893]
[1766733738467,0.07183,89380.0,89374.0,0.01124]
[1766733740190,0.07183,89380.0,89370.0,0.01118943]
[1766733740397,0.07183,89380.0,89372.0,0.01118918]
[1766733740594,0.07183,89380.0,89374.0,0.01118893]
[1766733740793,0.07183,89380.0,89375.0,0.01118881]
[1766733742124,0.07183,89380.0,89376.0,0.01118868]
[1766733742342,0.07183,89380.0,89375.0,0.01118881]
[1766733743126,0.07183,89380.0,89374.0,0.01118893]
[1766733743331,0.07183,89380.0,89376.0,0.01118868]
[1766733743510,1e-08,89389.0,89382.0,0.01118793]
[1766733743966,1e-08,89389.0,89381.0,0.06712797]
[1766733744331,1e-08,89389.0,89383.0,0.0111878]
[1766733744667,1e-08,89389.0,89382.0,0.01118793]
[1766733745092,1e-08,89389.0,89383.0,0.0111878]
[1766733745398,1e-08,89389.0,89384.0,0.01118768]
[1766733746388,1e-08,89389.0,89383.0,0.0111878]
[1766733746970,1e-08,89389.0,89382.0,0.06712725]
[1766733747177,1e-08,89389.0,89383.0,0.0111878]
[1766733747341,1e-08,89389.0,89384.0,0.01118768]
[1766733747547,1e-08,89389.0,89382.0,0.06712725]
[1766733747764,1e-08,89389.0,89383.0,0.0111878]
[1766733748388,1e-08,89389.0,89384.0,0.01118768]
[1766733748614,1e-08,89389.0,89379.0,0.0671293]
[1766733748819,0.000549,89384.0,89379.0,0.01118831]
[1766733749032,0.000549,89384.0,89380.0,0.01118818]
[1766733749206,0.07054,89388.0,89381.0,0.01118806]
[1766733750199,0.07054,89388.0,89379.0,0.01118831]
[1766733750400,0.07054,89388.0,89380.0,0.01118818]
[1766733751536,0.07054,89388.0,89379.0,0.01118831]
[1766733752276,0.07054,89388.0,89378.0,0.06713009]
[1766733752460,0.07054,89388.0,89381.0,0.01118806]
[1766733752671,0.08172718,89388.0,89379.0,0.01118831]
[1766733752864,0.07054,89388.0,89379.0,0.01118831]
[1766733753069,0.07054,89388.0,89382.0,0.01118793]
[1766733753249,0.06854,89388.0,89380.0,0.01118818]
[1766733754457,0.06854,89388.0,89381.0,0.01118806]
[1766733754633,0.06854,89388.0,89380.0,0.01118818]
[1766733754846,0.06854,89388.0,89379.0,0.01118831]
[1766733755295,0.06854,89388.0,89380.0,0.01118818]
[1766733755614,0.06854,89388.0,89379.0,0.01118831]
[1766733755615,0.07972718,89388.0,89379.0,0.01118831]
[1766733755736,0.07972718,89388.0,89378.0,0.01118843]
[1766733755940,0.07972718,89388.0,89379.0,0.01118831]
[1766733756373,0.06854,89388.0,89379.0,0.01118831]
[1766733757751,0.06854,89388.0,89380.0,0.01118818]
[1766733757954,0.07054,89388.0,89374.0,0.06713316]
[1766733758228,0.000549,89380.0,89377.0,0.06713109]
[1766733758354,0.07054,89379.0,89377.0,1.09e-06]
[1766733758575,0.07054,89386.0,89378.0,0.01118843]
[1766733758966,0.07054,89386.0,89377.0,0.01118965]
[1766733759302,0.07054,89386.0,89378.0,0.01118843]
[1766733759464,0.07054,89386.0,89377.0,0.01118965]
[1766733759821,0.07054,89386.0,89378.0,0.01118843]
[1766733760004,0.08172743,89386.0,89377.0,1.09e-06]
[1766733760215,0.07054,89386.0,89378.0,0.0671306]
[1766733760411,0.07054,89386.0,89379.0,0.01118831]
[1766733760612,0.07054,89386.0,89378.0,0.01118843]
[1766733760960,0.07054,89386.0,89379.0,0.01118831]
[1766733762032,0.07054,89386.0,89380.0,0.01118818]
[1766733762182,0.07054,89386.0,89379.0,0.01118831]
[1766733763214,0.07054,89386.0,89380.0,0.0671291]
[1766733763383,1e-08,89389.0,89381.0,0.01118806]
[1766733763799,0.07051001,89389.0,89380.0,0.01118818]
[1766733764301,0.07051001,89389.0,89381.0,0.01118806]
[1766733764746,0.07051001,89389.0,89382.0,0.01118793]
[1766733764947,0.07051001,89389.0,89384.0,0.01118768]
[1766733766373,0.07051001,89389.0,89382.0,0.01118793]
[1766733766557,0.07051001,89389.0,89383.0,0.0111878]
[1766733767238,0.07051001,89389.0,89382.0,0.01118793]
[1766733767605,0.07051001,89389.0,89383.0,0.0111878]
[1766733768056,0.07051001,89389.0,89382.0,0.01118793]
[1766733768351,0.07051001,89389.0,89383.0,0.0111878]
[1766733769257,0.07051001,89389.0,89381.0,0.01118806]
[1766733769557,1e-08,89389.0,89382.0,0.01118793]
[1766733770039,1e-08,89389.0,89381.0,0.01118806]
[1766733770246,1e-08,89389.0,89382.0,0.01118793]
[1766733770427,1e-08,89389.0,89383.0,0.0111878]
[1766733771963,1e-08,89389.0,89384.0,0.01118768]
[1766733772161,1e-08,89389.0,89376.0,0.05594296]
[1766733772468,1e-08,89389.0,89380.0,0.01118818]
[1766733772776,1e-08,89389.0,89379.0,0.01118831]
[1766733772777,0.01118706,89389.0,89379.0,0.01118831]
[1766733772966,0.08124706,89389.0,89379.0,0.01118831]
[1766733773361,0.0699478,89389.0,89381.0,0.01118806]
[1766733773562,0.0699478,89389.0,89380.0,0.01118818]
[1766733773764,0.0699478,89389.0,89381.0,0.01118806]
[1766733774130,0.0699478,89389.0,89380.0,0.01118818]
[1766733774332,0.0699478,89389.0,89381.0,0.01118806]
[1766733774646,0.0699478,89389.0,89382.0,0.01118793]
[1766733774993,0.0699478,89389.0,89381.0,0.01118806]
[1766733775138,0.0699478,89389.0,89381.0,0.0671278]
[1766733775346,0.0699478,89389.0,89384.0,0.01118768]
[1766733775543,0.0699478,89389.0,89385.0,0.01118755]
[1766733775750,0.0699478,89389.0,89383.0,0.0111878]
[1766733776144,0.0699478,89389.0,89382.0,0.01118793]
[1766733776354,0.0699478,89389.0,89381.0,0.0671278]
[1766733776555,0.0699478,89389.0,89382.0,0.01118793]
[1766733776960,0.0699478,89389.0,89379.0,0.01118831]
[1766733777375,0.0699478,89389.0,89380.0,0.01118818]
[1766733777770,0.0699478,89389.0,89381.0,0.01118806]
[1766733777970,0.0699478,89389.0,89382.0,0.01118793]
[1766733778170,0.0699478,89389.0,89381.0,0.01118806]
[1766733778371,0.0699478,89389.0,89382.0,0.01118793]
[1766733779363,0.0699478,89389.0,89379.0,0.01118831]
[1766733779565,0.08113485,89389.0,89379.0,0.01118831]
[1766733779766,0.0699478,89389.0,89380.0,0.01118818]
[1766733780390,0.08113485,89389.0,89379.0,0.01118831]
[1766733781149,0.01118718,89388.0,89378.0,0.01118843]
[1766733781350,0.0699478,89389.0,89381.0,0.01118806]
[1766733781583,0.0699478,89389.0,89380.0,0.01118818]
[1766733782012,0.08113485,89389.0,89378.0,0.01118843]
[1766733782235,0.0699478,89389.0,89383.0,0.0111878]
[1766733782462,0.0699478,89389.0,89384.0,0.01118768]
[1766733782635,0.01118655,89393.0,89383.0,0.0111878]
[1766733782829,0.00010747,89393.0,89386.0,0.01118743]
[1766733783011,0.01129402,89393.0,89384.0,0.01118768]
[1766733783218,0.07016747,89393.0,89384.0,0.01118768]
[1766733783416,0.07016747,89393.0,89385.0,0.01118755]
[1766733783614,0.00010747,89393.0,89389.0,0.01118705]
[1766733783799,0.00010747,89393.0,89385.0,0.01118755]
[1766733783998,0.00010747,89393.0,89383.0,0.0111878]
[1766733784199,0.00010747,89393.0,89384.0,0.01118768]
[1766733785058,0.00010747,89393.0,89385.0,0.01118755]
[1766733785910,0.00010747,89393.0,89384.0,0.01118768]
[1766733786154,0.00010747,89393.0,89385.0,0.01118755]
[1766733786367,0.06712954,89399.0,89386.0,0.01118743]
[1766733786521,0.06712954,89399.0,89385.0,0.01118755]
[1766733786522,0.05593067,89397.0,89385.0,0.01118755]
[1766733786727,0.07006,89396.0,89385.0,0.01118755]
[1766733786963,0.08124618,89396.0,89386.0,0.01118743]
[1766733788189,0.0812463,89395.0,89385.0,0.01118755]
[1766733788319,0.01118643,89394.0,89384.0,0.01118768]
[1766733788763,0.01118655,89393.0,89382.0,0.01118793]
[1766733788938,0.01118705,89389.0,89378.0,0.02238843]
[1766733789139,0.0111868,89391.0,89378.0,0.02238843]
[1766733789676,0.01118668,89392.0,89382.0,0.01118793]
[1766733790224,0.01118668,89392.0,89383.0,0.0111878]
[1766733790689,0.13717956,89393.0,89383.0,0.0111878]
[1766733790879,0.13717956,89393.0,89379.0,0.01118831]
[1766733790880,0.000107,89383.0,89380.0,0.01118818]
[1766733791046,0.07006,89390.0,89380.0,0.06712875]
[1766733791246,0.07006,89390.0,89381.0,0.01118806]
[1766733791863,0.08124693,89390.0,89381.0,0.01118806]
[1766733792075,0.07006,89390.0,89381.0,0.01118806]
[1766733792858,0.07006,89390.0,89382.0,0.01118793]
[1766733793146,0.07006,89390.0,89381.0,0.01118806]
[1766733793952,0.07006,89390.0,89382.0,0.01118793]
[1766733794753,0.07006,89390.0,89383.0,0.0111878]
[1766733795434,0.07006,89390.0,89382.0,0.01118793]
[1766733796335,0.07006,89390.0,89383.0,0.0111878]
[1766733797277,0.000107,89383.0,89380.0,0.01118818]
[1766733797463,0.000107,89383.0,89380.0,0.06712868]
[1766733797685,0.07006,89390.0,89381.0,0.01118806]
[1766733797686,0.08124693,89390.0,89381.0,0.01118806]
[1766733797893,0.07006,89390.0,89381.0,0.01118806]
[1766733798196,0.07228,89397.0,89388.0,0.01118718]
[1766733798396,0.01125607,89399.0,89393.0,0.01118655]
[1766733798723,0.07228,89403.0,89397.0,0.01118605]
[1766733798880,0.0112,89407.0,89400.0,0.01118568]
[1766733799305,0.0112,89407.0,89399.0,0.0111858]
[1766733799306,0.0112,89407.0,89398.0,0.01118593]
[1766733799618,0.01118493,89406.0,89395.0,0.0111863]
[1766733799798,0.0111848,89407.0,89397.0,0.01118605]
[1766733800000,0.01118493,89406.0,89396.0,0.01118618]
[1766733800388,0.01118493,89406.0,89397.0,0.01118605]
[1766733800931,0.03021046,89427.0,89418.0,0.01118343]
[1766733801138,0.03021046,89427.0,89396.0,0.79386764]
[1766733801139,0.07228,89482.0,89427.0,0.79386764]
[1766733801336,0.03355982,89476.0,89459.0,0.06706931]
[1766733801537,11.0001,89500.0,89466.0,0.39693382]
[1766733801677,0.0111733,89499.0,89481.0,0.04471547]
[1766733801883,11.0001,89500.0,89494.0,0.01117393]
[1766733802084,10.9251,89500.0,89497.0,0.01117355]
[1766733802282,10.9251,89500.0,89498.0,0.03510637]
[1766733802283,9.75338304,89500.0,89498.0,0.03510637]
[1766733802485,8.86092498,89500.0,89498.0,0.03510637]